[Event "German Masters Women 2018"]
[Site "Dresden"]
[Date "2018.08.02"]
[Round "1.1"]
[White "Schleining, Zoya"]
[Black "Kachiani-Gersinska, Ketino"]
[Result "1/2-1/2"]
[ECO "D03"]
[WhiteElo "2397"]
[BlackElo "2347"]
[Annotator "NA"]
[PlyCount "74"]
[EventDate "2018.08.04"]
[EventType "tourn"]
[EventCountry "GER"]
[SourceTitle "playchess.com"]
[Source "ChessBase"]
[SourceQuality "1"]
[TimeControl "40/5400+30:1800+30"]

1. d4 {[%emt 1:30:25]} Nf6 {[%emt 1:29:03]} 2. Nf3 {[%emt 1:30:44]} g6 {[%emt 1:29:15]} 3. Bg5 {[%emt 1:31:02]} Bg7 {[%emt 1:29:17]} 4. Nbd2 {[%emt 1:31:16]} d5 {[%emt 1:22:58]} 5. e3 {[%emt 1:30:42]} O-O {[%emt 1:19:57]} 6. Be2 {[%emt 1:29:12]} Nbd7 {[%emt 1:10:29]} 7. Bh4 {[%emt 1:19:08]} Re8 {[%emt 1:06:43]} 8. O-O {[%emt 1:14:30]} e5 {[%emt 0:57:18]} 9. Nb3 {[%emt 1:00:45]} Qe7 {[%emt 0:37:44]} 10. c3 {[%emt 0:47:13]} c6 {[%emt 0:33:07]} 11. Rc1 {[%emt 0:43:05]} h6 {[%emt 0:29:45]} 12. c4 {[%emt 0:38:44]} exd4 {[%emt 0:20:43]} 13. Nbxd4 {[%emt 0:38:09]} dxc4 {[%emt 0:20:30]} 14. Bxc4 {[%emt 0:36:41]} Nb6 {[%emt 0:20:53]} 15. Bb3 {[%emt 0:35:39]} c5 {[%emt 0:17:01]} 16. Nb5 {[%emt 0:33:20]} Rd8 {[%emt 0:17:12]} 17. Qc2 {[%emt 0:28:41]} c4 {[%emt 0:06:34]} 18. Bxc4 {[%emt 0:28:16]} Bf5 {[%emt 0:06:53]} 19. Qb3 {[%emt 0:25:20]} Nxc4 {[%emt 0:06:54]} 20. Rxc4 {[%emt 0:25:00]} Be6 {[%emt 0:06:32]} 21. Qb4 {[%emt 0:22:12]} Qxb4 {[%emt 0:05:56]} 22. Rxb4 {[%emt 0:22:39]} Bxa2 {[%emt 0:06:16]} 23. Nc3 {[%emt 0:21:37]} Be6 {[%emt 0:06:08]} 24. Nd4 {[%emt 0:19:42]} Rd7 {[%emt 0:03:29]} 25. Nxe6 {[%emt 0:03:57]} fxe6 {[%emt 0:03:57]} 26. Ra1 {[%emt 0:07:03]} Rc8 {[%emt 0:03:47]} 27. Kf1 {[%emt 0:05:38]} b6 {[%emt 0:03:27]} 28. Bxf6 {[%emt 0:03:56]} Bxf6 {[%emt 0:03:56]} 29. Ne4 {[%emt 0:01:33]} Bg7 {[%emt 0:03:32]} 30. g4 {[%emt 0:01:20]} Rc2 {[%emt 0:02:52]} 31. Rb1 {[%emt 0:01:02]} g5 {[%emt 0:02:58]} 32. Kg2 {[%emt 0:00:55]} Rdc7 {[%emt 0:03:04]} 33. b3 {[%emt 0:00:53]} Rd7 {[%emt 0:02:12]} 34. Kf3 {[%emt 0:00:52]} Rf7+ {[%emt 0:01:42]} 35. Kg2 {[%emt 0:01:16]} Rd7 {[%emt 0:02:05]} 36. Kf3 {[%emt 0:01:10]} Rf7+ {[%emt 0:02:10]} 37. Kg2 {[%emt 0:01:26]} Rd7 1/2-1/2

[Event "German Masters Women 2018"]
[Site "Dresden"]
[Date "2018.08.02"]
[Round "1.2"]
[White "Hoolt, Sarah"]
[Black "Fuchs, Judith"]
[Result "1/2-1/2"]
[ECO "B13"]
[WhiteElo "2357"]
[BlackElo "2276"]
[Annotator "NA"]
[PlyCount "82"]
[EventDate "2018.08.04"]
[EventType "tourn"]
[EventCountry "GER"]
[SourceTitle "playchess.com"]
[Source "ChessBase"]
[SourceQuality "1"]
[TimeControl "40/5400+30:1800+30"]

1. e4 {[%emt 1:30:27]} c6 {[%emt 1:30:21]} 2. d4 {[%emt 1:30:50]} d5 {[%emt 1:30:45]} 3. exd5 {[%emt 1:31:14]} cxd5 {[%emt 1:31:07]} 4. c4 {[%emt 1:31:41]} Nf6 {[%emt 1:31:28]} 5. Nc3 {[%emt 1:31:59]} Nc6 {[%emt 1:31:27]} 6. Nf3 {[%emt 1:32:14]} Bg4 {[%emt 1:31:01]} 7. cxd5 {[%emt 1:31:43]} Nxd5 {[%emt 1:31:03]} 8. Qb3 {[%emt 1:31:59]} Bxf3 {[%emt 1:27:32]} 9. gxf3 {[%emt 1:29:55]} e6 {[%emt 1:24:38]} 10. Qxb7 {[%emt 1:29:38]} Nxd4 {[%emt 1:24:52]} 11. Bb5+ {[%emt 1:29:50]} Nxb5 {[%emt 1:25:12]} 12. Qc6+ {[%emt 1:30:01]} Ke7 {[%emt 1:25:22]} 13. Qxb5 {[%emt 1:30:19]} Qd7 {[%emt 1:25:06]} 14. Nxd5+ {[%emt 1:24:04]} Qxd5 {[%emt 1:24:41]} 15. Bg5+ {[%emt 1:24:16]} f6 {[%emt 1:24:44]} 16. Qxd5 {[%emt 1:24:40]} exd5 {[%emt 1:25:07]} 17. Be3 {[%emt 1:25:03]} Ke6 {[%emt 1:20:34]} 18. O-O-O {[%emt 1:18:45]} Bb4 {[%emt 1:16:29]} 19. a3 {[%emt 1:15:32]} Rhc8+ {[%emt 1:16:27]} 20. Kb1 {[%emt 1:15:52]} Bc5 {[%emt 1:15:29]} 21. Rhe1 {[%emt 1:15:47]} Bxe3 {[%emt 1:15:22]} 22. Rxe3+ {[%emt 1:15:38]} Kd6 {[%emt 1:15:42]} 23. Rde1 {[%emt 1:15:26]} Rc4 {[%emt 1:12:11]} 24. Re7 {[%emt 1:10:51]} Rh4 {[%emt 1:11:55]} 25. R1e6+ {[%emt 1:10:02]} Kc5 {[%emt 1:12:18]} 26. Rxg7 {[%emt 1:10:20]} Rxh2 {[%emt 1:12:02]} 27. Rxf6 {[%emt 1:10:36]} Rxf2 {[%emt 1:12:13]} 28. Rxh7 {[%emt 1:10:56]} Rb8 {[%emt 1:12:14]} 29. Rc7+ {[%emt 1:09:47]} Kd4 {[%emt 1:09:43]} 30. Rc2 {[%emt 1:09:38]} Rxc2 {[%emt 1:09:37]} 31. Kxc2 {[%emt 1:10:06]} a5 {[%emt 1:09:26]} 32. Ra6 {[%emt 1:07:27]} Rc8+ {[%emt 1:09:07]} 33. Kd2 {[%emt 1:07:42]} Rb8 {[%emt 1:09:13]} 34. Kc2 {[%emt 1:07:58]} Rc8+ {[%emt 1:09:35]} 35. Kb3 {[%emt 1:07:34]} Rb8+ {[%emt 1:09:30]} 36. Kc2 {[%emt 1:07:00]} Rc8+ {[%emt 1:09:39]} 37. Kd2 {[%emt 1:07:23]} Rb8 {[%emt 1:10:02]} 38. Kc2 {[%emt 1:07:49]} Rc8+ {[%emt 1:10:23]} 39. Kb3 {[%emt 1:08:14]} Rb8+ {[%emt 1:10:45]} 40. Kc2 {[%emt 1:08:39]} Rc8+ {[%emt 1:11:11]} 41. Kd2 {[%emt 1:09:05]} Ke5 1/2-1/2

[Event "German Masters Women 2018"]
[Site "Dresden"]
[Date "2018.08.02"]
[Round "1.3"]
[White "Klek, Hanna Marie"]
[Black "Sieber, Fiona"]
[Result "0-1"]
[ECO "D70"]
[WhiteElo "2268"]
[BlackElo "2290"]
[Annotator "NA"]
[PlyCount "120"]
[EventDate "2018.08.04"]
[EventType "tourn"]
[EventCountry "GER"]
[SourceTitle "playchess.com"]
[Source "ChessBase"]
[SourceQuality "1"]
[TimeControl "40/5400+30:1800+30"]

1. Nf3 {[%emt 1:30:27]} Nf6 {[%emt 1:30:23]} 2. c4 {[%emt 1:30:52]} g6 {[%emt 1:30:48]} 3. d4 {[%emt 1:31:16]} Bg7 {[%emt 1:31:00]} 4. e3 {[%emt 1:31:41]} d5 {[%emt 1:28:39]} 5. cxd5 {[%emt 1:31:45]} Nxd5 {[%emt 1:28:42]} 6. e4 {[%emt 1:32:06]} Nb6 {[%emt 1:28:18]} 7. a4 {[%emt 1:32:26]} a5 {[%emt 1:21:10]} 8. Bb5+ {[%emt 1:32:50]} Bd7 9. O-O O-O {[%emt 1:16:27]} 10. h3 {[%emt 1:23:30]} Nc6 {[%emt 1:09:53]} 11. Nc3 {[%emt 1:11:23]} Nb4 {[%emt 0:58:42]} 12. Be3 {[%emt 1:05:48]} Bxb5 {[%emt 0:55:52]} 13. axb5 {[%emt 1:05:14]} Qd7 {[%emt 0:45:13]} 14. Qb3 {[%emt 0:59:50]} e6 {[%emt 0:35:43]} 15. Rfd1 {[%emt 0:57:26]} Nc8 {[%emt 0:31:18]} 16. Ne5 {[%emt 0:41:08]} Qe7 {[%emt 0:27:18]} 17. Nc4 {[%emt 0:40:51]} b6 {[%emt 0:27:15]} 18. Bf4 {[%emt 0:39:38]} Rd8 {[%emt 0:25:37]} 19. Be5 {[%emt 0:32:42]} Rb8 {[%emt 0:22:14]} 20. Rac1 {[%emt 0:24:35]} Bh6 {[%emt 0:20:32]} 21. Ne3 {[%emt 0:24:51]} Nd6 {[%emt 0:19:52]} 22. Rd2 {[%emt 0:17:22]} Rd7 {[%emt 0:15:12]} 23. Qd1 {[%emt 0:17:05]} Bxe3 {[%emt 0:14:00]} 24. Bxd6 {[%emt 0:17:11]} Bxf2+ {[%emt 0:14:13]} 25. Kxf2 {[%emt 0:14:09]} Rxd6 {[%emt 0:14:26]} 26. Qf3 {[%emt 0:13:43]} e5 {[%emt 0:12:25]} 27. Kg1 {[%emt 0:14:06]} exd4 {[%emt 0:09:09]} 28. Ne2 {[%emt 0:14:17]} Rbd8 {[%emt 0:07:40]} 29. Qf4 {[%emt 0:11:16]} d3 {[%emt 0:06:12]} 30. Ng3 {[%emt 0:06:03]} R8d7 {[%emt 0:10:42]} 31. Rf1 {[%emt 0:10:42]} Re6 {[%emt 0:04:52]} 32. Rf3 {[%emt 0:10:12]} Qc5+ {[%emt 0:05:05]} 33. Kh2 {[%emt 0:10:28]} Qxb5 {[%emt 0:04:59]} 34. Qg4 {[%emt 0:09:21]} Qe5 {[%emt 0:04:46]} 35. Rf5 {[%emt 0:08:52]} Qg7 {[%emt 0:04:58]} 36. Rb5 {[%emt 0:04:59]} Nc6 {[%emt 0:03:39]} 37. Rd5 {[%emt 0:04:24]} Rxd5 38. exd5 Ne5 {[%emt 0:02:51]} 39. Qf4 {[%emt 0:04:37]} Re8 {[%emt 0:02:06]} 40. Ne4 {[%emt 0:01:36]} f5 {[%emt 0:00:32]} 41. Ng5 {[%emt 0:00:32]} Qd7 {[%emt 0:25:15]} 42. Qh4 {[%emt 0:27:34]} Re7 {[%emt 0:25:09]} 43. Ne6 {[%emt 0:27:42]} Qd6 {[%emt 0:22:34]} 44. Kh1 {[%emt 0:27:13]} c6 {[%emt 0:21:10]} 45. Qf6 {[%emt 0:23:10]} Rf7 {[%emt 0:20:52]} 46. Qd8+ {[%emt 0:23:31]} Qxd8 {[%emt 0:21:16]} 47. Nxd8 {[%emt 0:23:58]} Rc7 {[%emt 0:17:58]} 48. Nxc6 {[%emt 0:23:27]} Nxc6 {[%emt 0:18:23]} 49. dxc6 {[%emt 0:23:51]} Rxc6 {[%emt 0:18:42]} 50. Rxd3 {[%emt 0:24:17]} Kf7 {[%emt 0:17:56]} 51. Rb3 {[%emt 0:23:34]} Ke6 {[%emt 0:17:06]} 52. Kg1 {[%emt 0:23:14]} Kd5 {[%emt 0:17:00]} 53. Kf2 {[%emt 0:22:36]} Rc2+ {[%emt 0:14:58]} 54. Kf3 {[%emt 0:22:55]} Kc5 {[%emt 0:14:54]} 55. g4 {[%emt 0:23:16]} fxg4+ {[%emt 0:12:40]} 56. hxg4 {[%emt 0:23:38]} b5 {[%emt 0:13:02]} 57. Kf4 {[%emt 0:24:00]} a4 {[%emt 0:13:04]} 58. Rh3 {[%emt 0:24:23]} Rxb2 {[%emt 0:13:19]} 59. Rxh7 {[%emt 0:24:48]} a3 {[%emt 0:13:19]} 60. Ra7 {[%emt 0:24:13]} Rb4+ {[%emt 0:12:18]} 0-1

[Event "German Masters Women 2018"]
[Site "Dresden"]
[Date "2018.08.02"]
[Round "1.4"]
[White "Lubbe, Melanie"]
[Black "Schneider, Jana"]
[Result "1-0"]
[ECO "C07"]
[WhiteElo "2338"]
[BlackElo "2179"]
[Annotator "NA"]
[PlyCount "93"]
[EventDate "2018.08.04"]
[EventType "tourn"]
[EventCountry "GER"]
[SourceTitle "playchess.com"]
[Source "ChessBase"]
[SourceQuality "1"]
[TimeControl "40/5400+30:1800+30"]

1. e4 {[%emt 1:30:28]} e6 {[%emt 1:30:22]} 2. d4 {[%emt 1:30:53]} d5 {[%emt 1:30:46]} 3. Nd2 {[%emt 1:31:18]} c5 {[%emt 1:31:07]} 4. exd5 {[%emt 1:31:08]} Qxd5 {[%emt 1:31:28]} 5. dxc5 {[%emt 1:31:11]} Qxc5 {[%emt 1:31:45]} 6. Ngf3 {[%emt 1:30:53]} Nf6 {[%emt 1:31:46]} 7. Bd3 {[%emt 1:30:49]} Bd6 {[%emt 1:23:32]} 8. Qe2 {[%emt 1:27:14]} O-O {[%emt 1:17:17]} 9. Ne4 {[%emt 1:12:56]} Nxe4 {[%emt 1:17:12]} 10. Qxe4 {[%emt 1:13:21]} f5 {[%emt 1:07:17]} 11. Qc4 {[%emt 1:06:13]} Nc6 {[%emt 1:04:15]} 12. Be3 {[%emt 0:52:32]} Qxc4 {[%emt 1:01:19]} 13. Bxc4 {[%emt 0:52:22]} Na5 {[%emt 1:00:45]} 14. Be2 {[%emt 0:50:08]} e5 {[%emt 0:55:45]} 15. O-O-O {[%emt 0:48:01]} Bc7 {[%emt 0:54:50]} 16. Bc5 {[%emt 0:40:18]} Rf6 {[%emt 0:47:39]} 17. Be7 {[%emt 0:30:53]} e4 {[%emt 0:42:23]} 18. Nd4 {[%emt 0:26:44]} Rg6 {[%emt 0:33:26]} 19. g3 {[%emt 0:22:24]} a6 {[%emt 0:23:14]} 20. h4 {[%emt 0:19:07]} f4 {[%emt 0:17:18]} 21. h5 {[%emt 0:15:33]} Rb6 {[%emt 0:16:43]} 22. gxf4 {[%emt 0:14:47]} Bxf4+ {[%emt 0:16:17]} 23. Kb1 {[%emt 0:15:16]} Be5 {[%emt 0:13:52]} 24. Bd8 {[%emt 0:08:54]} Rd6 {[%emt 0:13:23]} 25. Bc7 {[%emt 0:07:26]} Rd5 {[%emt 0:11:40]} 26. Bxa5 {[%emt 0:07:08]} Rxd4 {[%emt 0:11:38]} 27. Bc3 {[%emt 0:04:33]} Rxd1+ {[%emt 0:11:29]} 28. Rxd1 {[%emt 0:05:01]} Bxc3 {[%emt 0:10:37]} 29. Rd8+ {[%emt 0:05:24]} Kf7 {[%emt 0:11:02]} 30. bxc3 {[%emt 0:05:48]} Ke7 {[%emt 0:10:22]} 31. Rg8 {[%emt 0:05:12]} Kf7 {[%emt 0:10:08]} 32. Bc4+ {[%emt 0:04:39]} Kf6 {[%emt 0:10:23]} 33. Bd5 {[%emt 0:04:02]} Ke5 {[%emt 0:06:42]} 34. c4 {[%emt 0:04:25]} g6 {[%emt 0:06:15]} 35. hxg6 {[%emt 0:02:39]} hxg6 {[%emt 0:06:39]} 36. Re8+ {[%emt 0:02:53]} Kf4 {[%emt 0:05:49]} 37. Bxe4 {[%emt 0:01:55]} g5 {[%emt 0:04:06]} 38. Bd5 {[%emt 0:02:10]} g4 {[%emt 0:03:54]} 39. Kb2 {[%emt 0:02:19]} Kf5 {[%emt 0:01:48]} 40. Kc3 {[%emt 0:01:19]} Kf6 {[%emt 0:01:49]} 41. Kd4 {[%emt 0:00:08]} Kf5 {[%emt 0:02:00]} 42. c5 {[%emt 0:26:52]} Kf6 {[%emt 0:31:44]} 43. a3 {[%emt 0:26:47]} Kg5 {[%emt 0:31:39]} 44. Ke5 {[%emt 0:24:58]} Kg6 {[%emt 0:31:24]} 45. c4 {[%emt 0:16:59]} Kg5 {[%emt 0:31:30]} 46. Rg8+ {[%emt 0:16:37]} Kh4 {[%emt 0:31:22]} 47. Kd6 {[%emt 0:16:14]} 1-0

[Event "German Masters Women 2018"]
[Site "Dresden"]
[Date "2018.08.02"]
[Round "1.5"]
[White "Heinemann, Josefine"]
[Black "Osmanodja, Filiz"]
[Result "1-0"]
[ECO "A61"]
[WhiteElo "2261"]
[BlackElo "2350"]
[Annotator "NA"]
[PlyCount "85"]
[EventDate "2018.08.04"]
[EventType "tourn"]
[EventCountry "GER"]
[SourceTitle "playchess.com"]
[Source "ChessBase"]
[SourceQuality "1"]
[TimeControl "40/5400+30:1800+30"]

1. d4 {[%emt 1:30:27]} Nf6 {[%emt 1:25:34]} 2. c4 {[%emt 1:30:50]} e6 {[%emt 1:20:11]} 3. Nf3 {[%emt 1:31:16]} c5 {[%emt 1:19:18]} 4. d5 {[%emt 1:31:32]} exd5 {[%emt 1:16:23]} 5. cxd5 {[%emt 1:29:14]} d6 {[%emt 1:16:34]} 6. Nc3 {[%emt 1:29:33]} g6 {[%emt 1:12:31]} 7. Qa4+ {[%emt 1:27:43]} Bd7 {[%emt 1:03:07]} 8. Qb3 {[%emt 1:28:08]} Bc8 {[%emt 0:53:27]} 9. h3 {[%emt 1:20:56]} Bg7 {[%emt 0:53:08]} 10. Bf4 {[%emt 1:21:19]} O-O {[%emt 0:52:29]} 11. e3 {[%emt 1:20:02]} Na6 {[%emt 0:44:09]} 12. Be2 {[%emt 1:16:56]} Nc7 {[%emt 0:42:12]} 13. a4 {[%emt 1:10:05]} Re8 {[%emt 0:38:29]} 14. Nd2 {[%emt 1:07:54]} h6 {[%emt 0:30:57]} 15. O-O {[%emt 1:04:52]} Bf5 {[%emt 0:26:14]} 16. Nc4 {[%emt 0:55:34]} Nfxd5 {[%emt 0:16:05]} 17. Nxd5 Nxd5 18. Bxd6 {[%emt 0:47:55]} Qg5 {[%emt 0:14:24]} 19. h4 {[%emt 0:43:05]} Qxh4 {[%emt 0:09:37]} 20. Bg3 {[%emt 0:43:29]} Qg5 {[%emt 0:07:49]} 21. Nd6 {[%emt 0:43:28]} Be6 {[%emt 0:05:07]} 22. Nxe8 {[%emt 0:42:38]} Rxe8 {[%emt 0:05:35]} 23. Qb5 {[%emt 0:38:23]} Rc8 {[%emt 0:04:17]} 24. Kh2 {[%emt 0:31:43]} b6 {[%emt 0:04:27]} 25. Bc4 {[%emt 0:31:08]} Qh5+ {[%emt 0:02:26]} 26. Kg1 {[%emt 0:29:59]} Qg4 {[%emt 0:02:10]} 27. Rac1 {[%emt 0:25:17]} h5 {[%emt 0:01:42]} 28. Qb3 {[%emt 0:23:41]} h4 {[%emt 0:01:32]} 29. Bxh4 {[%emt 0:20:00]} Qxh4 {[%emt 0:02:00]} 30. Bxd5 {[%emt 0:20:10]} c4 {[%emt 0:01:25]} 31. Qb5 {[%emt 0:20:35]} Bxd5 {[%emt 0:00:45]} 32. Qxd5 {[%emt 0:21:00]} Bxb2 {[%emt 0:00:25]} 33. Rc2 {[%emt 0:19:06]} Bf6 {[%emt 0:00:53]} 34. g3 {[%emt 0:18:43]} Qg4 {[%emt 0:01:06]} 35. Kg2 {[%emt 0:18:14]} Qe6 {[%emt 0:00:20]} 36. Qxe6 {[%emt 0:16:42]} fxe6 {[%emt 0:00:49]} 37. Rd1 {[%emt 0:17:04]} Rc7 {[%emt 0:00:32]} 38. f4 {[%emt 0:17:19]} Kf7 {[%emt 0:00:20]} 39. e4 {[%emt 0:17:08]} c3 {[%emt 0:00:13]} 40. Rd3 {[%emt 0:17:13]} Rc4 {[%emt 0:00:17]} 41. e5 {[%emt 0:17:38]} Be7 {[%emt 0:29:36]} 42. Rcxc3 {[%emt 0:44:48]} Rxc3 {[%emt 0:23:25]} 43. Rxc3 {[%emt 0:45:13]} 1-0

[Event "German Masters Women 2018"]
[Site "Dresden"]
[Date "2018.08.03"]
[Round "2.1"]
[White "Kachiani-Gersinska, Ketino"]
[Black "Osmanodja, Filiz"]
[Result "0-1"]
[ECO "A08"]
[WhiteElo "2347"]
[BlackElo "2350"]
[Annotator "NA"]
[PlyCount "130"]
[EventDate "2018.08.04"]
[EventType "tourn"]
[EventCountry "GER"]
[SourceTitle "playchess.com"]
[Source "ChessBase"]
[SourceQuality "1"]
[TimeControl "40/5400+30:1800+30"]

1. Nf3 {[%emt 1:29:21]} c5 {[%emt 1:29:36]} 2. g3 {[%emt 1:25:52]} Nc6 {[%emt 1:28:36]} 3. Bg2 {[%emt 1:26:15]} d5 {[%emt 1:28:44]} 4. d3 {[%emt 1:26:10]} e5 {[%emt 1:26:05]} 5. O-O {[%emt 1:26:27]} Nf6 {[%emt 1:24:08]} 6. Nbd2 {[%emt 1:09:28]} Bf5 {[%emt 1:17:17]} 7. Nh4 {[%emt 1:03:29]} Bg4 {[%emt 1:16:26]} 8. h3 {[%emt 1:00:42]} Be6 {[%emt 1:14:01]} 9. e4 {[%emt 1:00:06]} Qd7 {[%emt 1:07:19]} 10. exd5 {[%emt 0:54:10]} Nxd5 {[%emt 1:06:08]} 11. Kh2 {[%emt 0:54:33]} Be7 {[%emt 1:04:33]} 12. Nhf3 {[%emt 0:54:56]} O-O {[%emt 1:02:21]} 13. Re1 {[%emt 0:54:10]} f6 {[%emt 1:01:18]} 14. Nc4 {[%emt 0:48:18]} Rad8 {[%emt 0:57:09]} 15. Bd2 {[%emt 0:47:55]} b5 {[%emt 0:55:28]} 16. Na5 {[%emt 0:43:41]} Nd4 {[%emt 0:52:47]} ({Black should try} 16... Nxa5 $15 17. Bxa5 Rc8) 17. c3 $17 {[%emt 0:36:13]} (17. c4 $11 bxc4 18. dxc4) 17... Nf5 {[%emt 0:49:39]} 18. a4 {[%emt 0:24:25]} b4 {[%emt 0:43:36]} 19. Qe2 {[%emt 0:19:58]} Nb6 {[%emt 0:38:11]} 20. g4 {[%emt 0:15:19]} Nh6 {[%emt 0:27:56]} 21. d4 {[%emt 0:10:05]} cxd4 {[%emt 0:21:16]} 22. cxd4 {[%emt 0:10:13]} Nf7 {[%emt 0:17:55]} 23. dxe5 {[%emt 0:09:03]} fxe5 {[%emt 0:16:28]} 24. Qb5 {[%emt 0:06:18]} Bd5 {[%emt 0:07:24]} 25. Qxd7 {[%emt 0:05:16]} Rxd7 {[%emt 0:07:53]} 26. Be3 {[%emt 0:04:52]} b3 {[%emt 0:04:06]} 27. Rec1 {[%emt 0:04:46]} Bb4 {[%emt 0:00:21]} 28. Nc6 {[%emt 0:04:59]} Bxc6 {[%emt 0:00:15]} 29. Rxc6 {[%emt 0:05:12]} e4 {[%emt 0:00:13]} 30. Nd4 {[%emt 0:03:27]} Ne5 {[%emt 0:00:42]} 31. Re6 {[%emt 0:02:03]} Nd3 {[%emt 0:00:10]} 32. Nf5 {[%emt 0:01:28]} Nc4 {[%emt 0:00:06]} 33. Rxe4 {[%emt 0:01:12]} Ncxb2 {[%emt 0:00:13]} 34. Rb1 {[%emt 0:00:47]} Bc3 {[%emt 0:00:18]} 35. Bd4 {[%emt 0:00:15]} Rxf5 {[%emt 0:00:06]} 36. Bxc3 {[%emt 0:00:03]} Rxf2 {[%emt 0:00:33]} 37. Kg1 {[%emt 0:00:27]} Rc2 {[%emt 0:00:31]} 38. Bd4 {[%emt 0:00:12]} h6 {[%emt 0:00:08]} 39. a5 {[%emt 0:00:26]} a6 {[%emt 0:00:17]} 40. Bf1 {[%emt 0:00:32]} Rc4 {[%emt 0:00:14]} 41. Re6 {[%emt 0:14:39]} Rdxd4 {[%emt 0:24:17]} 42. Rxa6 {[%emt 0:14:50]} Rc1 {[%emt 0:11:57]} 43. Ra8+ {[%emt 0:14:01]} Kh7 {[%emt 0:11:09]} 44. Rxc1 {[%emt 0:14:15]} Nxc1 {[%emt 0:11:37]} 45. a6 {[%emt 0:11:44]} Nbd3 {[%emt 0:05:09]} 46. Rb8 {[%emt 0:08:45]} b2 {[%emt 0:04:10]} 47. Bg2 {[%emt 0:02:59]} Ra4 {[%emt 0:03:22]} 48. h4 {[%emt 0:03:17]} Rxa6 {[%emt 0:01:15]} 49. Be4+ {[%emt 0:03:41]} g6 {[%emt 0:01:30]} 50. h5 {[%emt 0:04:05]} Kg7 {[%emt 0:00:26]} 51. Rb7+ {[%emt 0:04:00]} Kf6 {[%emt 0:00:21]} 52. hxg6 {[%emt 0:04:17]} Ra7 {[%emt 0:00:12]} 53. g5+ {[%emt 0:00:31]} hxg5 {[%emt 0:00:23]} 54. g7 {[%emt 0:00:24]} b1=Q {[%emt 0:00:09]} 55. g8=N+ {[%emt 0:00:08]} Ke5 {[%emt 0:00:34]} 56. Rxb1 {[%emt 0:00:31]} Kxe4 {[%emt 0:00:39]} 57. Rb5 {[%emt 0:00:19]} Ne2+ {[%emt 0:00:31]} 58. Kf1 {[%emt 0:00:38]} Nef4 {[%emt 0:00:18]} 59. Kg1 {[%emt 0:00:13]} Ra1+ {[%emt 0:00:18]} 60. Kh2 {[%emt 0:00:33]} Ra2+ {[%emt 0:00:39]} 61. Kg1 {[%emt 0:00:48]} Rg2+ {[%emt 0:00:21]} 62. Kf1 {[%emt 0:01:09]} Rf2+ {[%emt 0:00:18]} 63. Kg1 {[%emt 0:01:36]} Ne2+ {[%emt 0:00:30]} 64. Kh1 {[%emt 0:02:03]} Ng3+ {[%emt 0:00:41]} 65. Kg1 {[%emt 0:02:29]} Kf3 {[%emt 0:00:56]} 0-1